Cogmind - Beta 15 @@@ ROGUE MODE // 2025.05.27 @ 00:58:11 Player: pirx Result: Destroyed by H-55 Commando with Gauss Rifle Performance ------------- Evolutions (2) 1000 Regions Visited (3) 600 Robots Destroyed (63) 315 Value Destroyed (1730) 1730 Prototype IDs (2) 40 Alien Tech Used (0) 0 Bonus (0) 0 TOTAL SCORE: 3685 Bonus ------- None Cogmind --------- Core Integrity 0/550 Matter 249/300 Energy 191/300 System Corruption 1% Temperature Cool (0) Movement Rolling (95) Ox1 Location -8/Materials Parts ------- > --- POWER (3) -------- (None) > --- PROPULSION (3) --- Wheel > --- UTILITY (2) ------ Large Battery > --- WEAPON (3) ------- Heavy Laser Mace Axe > --- INVENTORY (5) ---- Assault Rifle Peak State ------------ > --- POWER ------------ Light Deuterium Engine Light Deuterium Engine Light Deuterium Engine > --- PROPULSION ------- Light Treads Improved Treads Improved Treads > --- UTILITY ---------- Improved Heat Sink Large Storage Unit > --- WEAPON ----------- Advanced Beam Cannon Advanced Beam Cannon Enhanced Autogun > --- INVENTORY -------- Improved Ion Engine Improved Ion Engine Light Treads Wheel Wheel Wheel Wheel Medium Storage Unit Large Battery Beam Rifle Advanced Beam Cannon Assault Rifle Light Assault Rifle Mace [Rating: 30] Favorites ----------- Power Light Deuterium Engine Engine Light Deuterium Engine Propulsion Light Treads Treads Light Treads Wheel Wheel Utility Large Storage Unit Device Terrain Scanner Storage Large Storage Unit Processor Visual Processing Unit Hackware Hacking Suite Weapon Advanced Beam Cannon Energy Gun Small Laser Energy Cannon Advanced Beam Cannon Ballistic Gun Assault Rifle Ballistic Cannon Light Cannon Launcher Grenade Launcher Impact Weapon Mace Slashing Weapon Axe Build | -11 -10 -9 -8 ------- Run | Yrd Mat Mat Mat Slots Evolved 4 | . . 2 2 Power 2 | . . 1 1 Propulsion 1 | . . . 1 Utility . | . . . . Weapon 1 | . . 1 . Parts Attached 61 | 6 5 30 20 Power 14 | 1 . 10 3 Engine 14 | 1 . 10 3 Core . | . . . . Reactor . | . . . . Propulsion 16 | 2 . 9 5 Treads 9 | 2 . 4 3 Leg . | . . . . Wheel 7 | . . 5 2 Hover . | . . . . Flight . | . . . . Utility 9 | 1 3 2 3 Device 3 | . 1 1 1 Storage 4 | 1 2 . 1 Processor 1 | . . 1 . Hackware 1 | . . . 1 Protection . | . . . . Artifact . | . . . . Weapon 22 | 2 2 9 9 Energy Gun 7 | 1 1 2 3 Energy Cannon 3 | . . 2 1 Ballistic Gun 6 | 1 . 4 1 Ballistic Cannon 2 | . . 1 1 Launcher 2 | . 1 . 1 Special Weapon . | . . . . Impact Weapon 1 | . . . 1 Slashing Weapon 1 | . . . 1 Piercing Weapon . | . . . . Special Melee Weapon . | . . . . Unidentified Prototypes 2 | . . 2 . Parts Lost 41 | . . 21 20 Power 13 | . . 6 7 Propulsion 11 | . . 6 5 Utility 3 | . . 1 2 Weapon 14 | . . 8 6 Highest Loss Streak 7 | . . 7 7 To Critical Strikes 1 | . . 1 . Average Backups 9 | 2 6 9 10 Power 1 | 1 1 2 1 Propulsion 2 | 1 2 2 3 Utility 1 | . 1 2 1 Weapon 2 | . 1 2 4 Tool/Special . | . . . . Unused Backups 1 | . 1 . . Power 1 | . 1 . . Propulsion . | . . . . Utility . | . . . . Weapon . | . . . . Tool/Special . | . . . . Average Slot Usage (%) 85 | . 96 89 76 Engine 16 | . 14 19 15 Treads 15 | . 28 10 14 Wheel 4 | . . 6 4 Device 5 | . 10 4 4 Storage 12 | . 14 11 13 Processor 2 | . . 6 . Energy Gun 10 | . 21 12 3 Energy Cannon 4 | . . 2 8 Ballistic Gun 6 | . 5 10 4 Ballistic Cannon 1 | . . 3 . Launcher 1 | . 1 1 . Impact Weapon 2 | . . . 5 Peak Build Rating 30 | 6 8 26 30 Average Rating 13 | 3 7 12 18 On Entrance 10 | . 6 8 26 Naked Turns . | . . . . Heaviest Build 51 | 11 27 42 51 Greatest Support 66 | 40 40 46 66 Greatest Overweight (x) 14 | . . 3 14 Average Overweight (x) . | . . . . Largest Inventory Capacity 15 | 8 15 15 15 Average Capacity 12 | 6 8 15 13 Most Carried 15 | 5 10 15 15 Average Carried 9 | 2 6 9 10 Final Capacity 15 | 8 15 15 5 Final Carried 14 | 3 10 14 1 Class Distribution -------------------- 52% | Mutant 17% | Skirmisher 10% | Scavenger-Skirmisher 10% | Gunner 9% | Scavenger-Mutant Dominant Class ---------------- Mutant | -10/Materials Skirmisher | -9/Materials Mutant | -8/Materials Resources | -11 -10 -9 -8 ----------- Run | Yrd Mat Mat Mat Matter Collected 1789 | 241 139 662 747 Remotely . | . . . . Salvage Created 2000 | . 180 1039 781 Parts 123 | . 27 66 30 Haulers Intercepted . | . . . . Recyclers Shooed . | . . . . Parts Field Recycled . | . . . . Retrieved Matter . | . . . . Parts Self-Destructed . | . . . . Prevented . | . . . . Kills | -11 -10 -9 -8 ------- Run | Yrd Mat Mat Mat Combat Hostiles Destroyed 48 | . 6 26 16 Melee 2 | . . 1 1 Guns 27 | . 4 19 4 Cannons 14 | . . 4 10 AOE 5 | . 2 2 1 Classes Destroyed 7 | . 4 3 . Worker 2 | . . 1 1 Builder 4 | . 2 2 . Recycler 2 | . 1 . 1 Watcher 7 | . 3 3 1 Swarmer 16 | . 6 7 3 Grunt 23 | . . 11 12 Sentry 9 | . . 8 1 Best Kill Streak 12 | . 12 9 5 Combat Bots Only 6 | . 6 4 3 Max Kills in Single Turn 4 | . 3 4 2 Gunslinging . | . . . . Exploded 1 | . 1 1 1 Melee 1 | . . 1 1 Uniques/NPCs Destroyed . | . . . . Combat | -11 -10 -9 -8 -------- Run | Yrd Mat Mat Mat Hostile Shots Fired 460 | . 16 202 242 Missed 107 | . 7 50 50 Hits 353 | . 9 152 192 Projectile 353 | . 9 152 192 Critical Strikes 15 | . . 6 9 Damage Taken 4641 | . 77 1860 2704 Core 850 | . . 299 551 Absorbed by Shields 59 | . . . 59 Regen/Repaired (Parts) 101 | . . . 101 Core Remaining (%) 75 | 100 100 25 . Volleys Fired 178 | . 12 82 84 Largest 3 | . 2 3 3 Hottest 161 | . 90 138 161 Shots Fired 395 | . 24 205 166 Gun 251 | . 17 159 75 Cannon 127 | . . 40 87 Launcher 17 | . 7 6 4 Special . | . . . . Kinetic 184 | . . 106 78 Thermal 168 | . 17 67 84 Explosive 17 | . 7 6 4 Electromagnetic 26 | . . 26 . Robot Hit Streak 12 | . 2 12 11 Robot Miss Streak 10 | . 3 10 3 Penetration Max . | . . . . Secondary Targets 2 | . . 2 . Max Gunslinging Chain 1 | . . 1 . Shots Hit Robots 227 | . 8 112 107 Core Hits 112 | . 16 50 46 Critical Kills 1 | . . . 1 Critical Parts Destroyed 2 | . . 1 1 Critical Strikes 7 | . . 4 3 Burn 4 | . . 3 1 Destroy 3 | . . 1 2 Melee Attacks 7 | . . . 7 Impact 4 | . . . 4 Slashing 3 | . . . 3 Piercing . | . . . . Sneak Attacks . | . . . . Combat Hostiles . | . . . . Follow-up Attacks 1 | . . . 1 Damage Inflicted 4964 | . 609 2010 2345 Guns 2138 | . 66 1357 715 Cannons 1406 | . . 305 1101 Explosions 1232 | . 543 340 349 Melee 177 | . . . 177 Ramming 11 | . . 8 3 Kinetic 1694 | . . 872 822 Thermal 1733 | . 66 673 994 Explosive 1035 | . 543 143 349 Electromagnetic 314 | . . 314 . Impact 80 | . . . 80 Slashing 97 | . . . 97 Piercing . | . . . . Highest Corruption 3 | . . 3 1 Average Corruption 1 | . . 3 1 Corruption Purged . | . . . . Corruption Blocked . | . . . . Effects 3 | . . 2 1 Message Errors 1 | . . . 1 Matter Fused 1 | . . 1 . Energy Discharges 1 | . . 1 . Overload Shots . | . . . . Overflow Damage 66 | . 23 6 37 Projectiles 6 | . . . 6 Explosions 29 | . 23 6 . Melee 31 | . . . 31 Knockbacks 5 | . . . 5 Impact . | . . . . Kinetic 5 | . . . 5 Secondary . | . . . . Self-Inflicted Damage 155 | . . 149 6 Shots 6 | . . 5 1 Rammed 4 | . . 3 1 Targets Rammed 6 | . . 5 1 Kicked . | . . . . Crushed 2 | . . 2 . Highest Temperature 672 | . 90 500 672 Average Temperature 172 | . 22 131 248 Received Heat Transfer 1659 | . . 606 1053 Effects 59 | . . 10 49 Shutdowns 22 | . . 4 18 Energy Bleed 6 | . . . 6 Interference 3 | . . 2 1 Matter Decay 8 | . . 1 7 Short Circuit 7 | . . 1 6 Damage (minor) 3 | . . 2 1 Damage (major) 8 | . . . 8 Damage (core) 2 | . . . 2 Siege Activations . | . . . . Martial Activations . | . . . . Shielding Activations . | . . . . Robots Disrupted . | . . . . Combat Hostiles . | . . . . Robots Corrupted . | . . . . Combat Hostiles . | . . . . Parts Fried . | . . . . Impact Corruptions . | . . . . Robots Melted . | . . . . Combat Hostiles . | . . . . Parts Melted 7 | . . 4 3 Heat Transferred 3683 | . 150 1572 1961 Parts Sabotaged . | . . . . Parts Stolen . | . . . . Parts Stripped . | . . . . Power Chain Reactions 3 | . . 3 . Alert | -11 -10 -9 -8 ------- Run | Yrd Mat Mat Mat Maximum Alert Level 1 | . 1 1 . Low Security (%) 83 | 100 95 60 100 Level 1 16 | . 4 39 . Level 2 . | . . . . Level 3 . | . . . . Level 4 . | . . . . Level 5 . | . . . . High Security . | . . . . Max Security . | . . . . Peak Influence 298 | . 200 298 164 Initial 110 | . . 45 110 Average 96 | . 77 129 78 Influence Increases 1640 | . 243 889 508 Destroy 0b10 Robot/C 960 | . 120 520 320 Destroy 0b10 Robot/NC 75 | . 30 30 15 Destroy Leader 214 | . 26 136 52 Successful Hack 13 | . 10 . 3 Disable Machine 60 | . 30 15 15 Destroy Structure 108 | . 27 53 28 Lose Combat Pursuer 210 | . . 135 75 Influence Decreases 1638 | . 134 736 768 Entered New Map 216 | . . 64 152 Time Decay 946 | . 134 396 416 Lost Part 404 | . . 204 200 Purge Threat 72 | . . 72 . Squads Dispatched 4 | . . 1 3 Investigation 2 | . . 1 1 Extermination . | . . . . Reinforcement 2 | . . . 2 Assault . | . . . . Garrison . | . . . . Intercept . | . . . . Searches Triggered . | . . . . Construction Impeded 1 | . . . 1 Haulers Reinforced . | . . . . Active Scanning Responses . | . . . . Cargo Convoy Interrupts . | . . . . Stealth | -11 -10 -9 -8 --------- Run | Yrd Mat Mat Mat Distress Signals 6 | . 3 2 1 Communications Jammed . | . . . . Distress Signals . | . . . . Times Spotted 74 | . 11 35 28 Peak Tracking Total 7 | . 5 7 6 Tactical Retreats 9 | . . 5 4 Traps | -11 -10 -9 -8 ------- Run | Yrd Mat Mat Mat Traps Triggered . | . . . . Indirectly . | . . . . Trap Hack Attempts . | . . . . Triggered . | . . . . Disarmed . | . . . . Reprogrammed . | . . . . Reused . | . . . . Traps Extracted . | . . . . Installed . | . . . . Triggered . | . . . . Machines | -11 -10 -9 -8 ---------- Run | Yrd Mat Mat Mat Machines Disabled 5 | . 3 1 1 Max in Single Turn 2 | . 2 1 1 Machines Repaired . | . . . . Machines Dismantled . | . . . . Machines Sabotaged . | . . . . Overloaded Fab Kills . | . . . . Hacking | -11 -10 -9 -8 --------- Run | Yrd Mat Mat Mat Machines Accessed 6 | . 3 1 2 Terminals 5 | . 3 1 1 Fabricators . | . . . . Repair Stations 1 | . . . 1 Recycling Units . | . . . . Scanalyzers . | . . . . Garrison Access . | . . . . Total Hacks 15 | . 5 2 8 Successful 9 | . 4 1 4 Failed 6 | . 1 1 4 Catastrophic . | . . . . Database Lockouts . | . . . . Manual . | . . . . Terminals 9 | . 5 2 2 Fabricators . | . . . . Repair Stations 6 | . . . 6 Recycling Units . | . . . . Scanalyzers . | . . . . Garrison Access . | . . . . Terminal Hacks 5 | . 4 1 . Robot Analysis 1 | . 1 . . Terminal Index 1 | . 1 . . Alert Level 1 | . 1 . . Unreport Threat 1 | . . 1 . Patrol Status 1 | . 1 . . Fabricator Hacks . | . . . . Repair Station Hacks 4 | . . . 4 Scan Component 2 | . . . 2 Repair 2 | . . . 2 Recycling Unit Hacks . | . . . . Scanalyzer . | . . . . Garrison Access Hacks . | . . . . Unauthorized Hacks . | . . . . Terminals . | . . . . Fabricators . | . . . . Repair Stations . | . . . . Recycling Units . | . . . . Scanalyzers . | . . . . Garrison Access . | . . . . Data Cores Recovered . | . . . . Used . | . . . . Hacking Detections 4 | . 1 1 2 Full Trace Events 1 | . . . 1 Feedback Events 1 | . . . 1 Corruption 1 | . . . 1 Feedback Blocked . | . . . . Robot Schematics Acquired . | . . . . Robots Built . | . . . . Authchips . | . . . . Time . | . . . . Total Robot Build Rating . | . . . . Part Schematics Acquired . | . . . . Parts Built . | . . . . Authchips . | . . . . Time . | . . . . Total Part Build Rating . | . . . . Parts Repaired 2 | . . . 2 Time 82 | . . . 82 Parts Recycled . | . . . . Recycled Matter . | . . . . Retrieved Matter . | . . . . Retrieved Components . | . . . . Parts Scanalyzed . | . . . . Part Schematics Acquired . | . . . . Parts Damaged . | . . . . Bothacking | -11 -10 -9 -8 ------------ Run | Yrd Mat Mat Mat Used RIF Installer . | . . . . Robots Hacked . | . . . . Non-combat . | . . . . Combat . | . . . . Robot Hacks Applied . | . . . . Relay Couplers Released . | . . . . Fabnet Peak Effective % . | . . . . Robots Rewired . | . . . . Allies Hacked . | . . . . Hacks Repelled . | . . . . Allies | -11 -10 -9 -8 -------- Run | Yrd Mat Mat Mat Total Allies . | . . . . Largest Group . | . . . . Highest-Rated Group . | . . . . Highest-Rated Ally . | . . . . Total Orders . | . . . . Ally Attacks . | . . . . Total Damage . | . . . . Kills . | . . . . Allies Corrupted . | . . . . Allies Melted . | . . . . Intel | -11 -10 -9 -8 ------- Run | Yrd Mat Mat Mat Active Infowar (turns) 1317 | . 410 907 . Optics 528 | . . 528 . Terrain 789 | . 410 379 . Robot Analysis Total 1 | . 1 . . Derelict Logs Recovered . | . . . . Drone Launches . | . . . . Drone Recoveries . | . . . . Exploration | -11 -10 -9 -8 ------------- Run | Yrd Mat Mat Mat Turns Passed 2640 | 68 523 1034 1015 Spaces Moved 1201 | 41 284 464 412 Core 15 | 10 . . 5 Treads 796 | 31 284 242 239 Legs . | . . . . Wheels 390 | . . 222 168 Hover . | . . . . Flight . | . . . . Fastest Speed 50 | 50 160 95 80 Average Speed 157 | 133 160 149 166 Slowest Speed 750 | 160 160 240 750 Overloaded Moves . | . . . . Propulsion Burnouts . | . . . . Robots Hopped . | . . . . Potential Cave-ins . | . . . . Cave-ins Triggered . | . . . . Exploration Rate (%) 31 | 4 53 34 34 Regions Visited 3 Branch Regions . Pre-discovered Areas . | . . . . Known Exits Taken . | . . . . Unknown Exits Taken 3 | 1 1 1 . Scrap Searched . | . . . . Spaces Dug . | . . . . Terrain Destroyed 111 | . 25 57 29 Melee . | . . . . Projectile 2 | . . . 2 AOE 109 | . 25 57 27 Terrain Rammed . | . . . . Walls Destroyed . | . . . . Machines Disabled . | . . . . Actions | -11 -10 -9 -8 --------- Run | Yrd Mat Mat Mat Total 1619 | 55 327 636 601 Wait 70 | . 11 13 46 Move 1198 | 40 283 463 412 Hop . | . . . . Pick Up 65 | 9 11 31 14 Fast Attach 1 | . . . 1 Attach 55 | 6 1 29 19 Detach 5 | . . 4 1 Swap 21 | . 6 5 10 Drop 14 | . 3 4 7 Fire 178 | . 12 82 84 Melee 6 | . . . 6 Ram . | . . . . Kick . | . . . . Crush 6 | . . 5 1 Escape Stasis . | . . . . Rewire . | . . . . Trap . | . . . . Miscellaneous . | . . . . Route ------- -11/Scrapyard -10/Materials (discovered 3 exits: *Mat / [*Min x2]) -9/Materials -8/Materials History --------- Turn | Location | Event 6 | -11/Scrapyard | Discovered new exit (range 15) 69 | -11/Scrapyard | Entered Materials 114 | -10/Materials | Discovered new exit (range 11) 302 | -10/Materials | Build established: Mutant 308 | -10/Materials | Discovered new exit (range 13) 538 | -10/Materials | Discovered new exit (range 16) 592 | -10/Materials | Entered another Materials area 592 | -9/Materials | Evolved 2 slots: Power x1, Weapon x1 840 | -9/Materials | Lost 4 parts (1p1n2w) 1002 | -9/Materials | Lost 3 parts (1p1n1u) 1165 | -9/Materials | Core integrity fell below 50% 1196 | -9/Materials | Lost 7 parts (2p3n2w) 1598 | -9/Materials | Discovered new exit (range 4) 1626 | -9/Materials | Entered another Materials area 1626 | -8/Materials | Evolved 2 slots: Power x1, Propulsion x1 2346 | -8/Materials | Lost 4 parts (3p1w) 2353 | -8/Materials | Repaired Broken Particle Gun 2391 | -8/Materials | Repaired Minigun 2407 | -8/Materials | Core integrity fell below 50% 2453 | -8/Materials | Core integrity fell below 20% 2471 | -8/Materials | Lost 7 parts (1p2n1u3w) 2629 | -8/Materials | Lost 3 parts (1n1u1w) 2641 | -8/Materials | Destroyed by H-55 Commando with Gauss Rifle Last Messages --------------- Acquired 20 matter. Acquired 5 matter. K-01 Serf collects debris. Slug penetrates A-02 Transporter. Acquired 54 matter. Acquired 6 matter. S-10 Pest suffers critical hit (Destroy). Destroyed Flight Unit. S-10 Pest destroyed. Wheel destroyed. /DV,L%5TDDM928Q2D7SARM Penetrated by Slug. Shield Generator destroyed. Penetrated by Slug. Grenade Launcher destroyed. Wheel destroyed. Slug penetrates Wall. Wall collapses. Penetrated by Slug. Axe follow-up attack on H-55 Commando. Map ----- +----------------------------------------------------+ | ????????????????????????????????# !! [ # #### | | ????????????????????????????????# !! # !! | | ????????????????????????????????# ! # !! | | ????????????????????????????????# # ]] | | ????????????????????????????????# # ]] | | ????????????????????????????????# += [[ | | ????????????????????????????????# #%[ [[ | | ????????????????????????????????########### #### | | ??????????????????????????????????????????# #??? | | ???????????????????????????????????######?# #??? | | ???????????????????????????????????# # #??? | | ???????????????????????????????????# """ # #??? | | ???????????????????????????????????# """ + #??? | | ???????????????????????????????????+ """ # #??? | | ???????????????????????????????????# # #??? | | ???????????????????????????????????#] ?# #??? | | ?????????????????????##########????######?# #??? | | ?????????????????????# #???????????# #??? | | ?????????????????????# #???????????# #??? | | ?????????????????????# #???????????# #??? | | ???????????????????### # ??????????# #??? | | ???????????????????#"" # ########??# #??? | | ???????????????????#"Y !!! + #??# #??? | | ???????????????????#"" !!! # #??# #??? | | ?????????????????????# !!! ## #??# #??? | | ?????????????????????# @ [## #### #??? | | ?????????????????????####h;##### #?## | | ????????????????????????# ###### #? | | ????????????????????????# # " | | ????????????????????????# # " | | ????????????????????????###### + " | | ?????????????????????????????# #### ## ## # " | | ?????????????????????????????# # !#?# # | | ?????????????????????????????# # """ #?# #### | | ????????????????????########## + """ #?# # | | ???????????????????? # # """ #?# + | | ??????????????????????"" "" # # #?# # | | ?????????????????????""" """ # # """ #?# # | | ?????????????????????""" S" + # """ #?#### | | ???????????????????# # # ! """ #????# | | ???????????????????# = #### #????# = | | ???????????????????# #??########??????# = | | ???????????????????# #????????????????#### | | ???????????????????###########???????????????????? | | ?????????????????????????????????????????????????? | | ?????????????????????????????????????????????????? | | ?????????????????????????????????????????????????? | | ?????????????????????????????????????????????????? | | ?????????????????????????????????????????????????? | | | +----------------------------------------------------+ Best States ------------- Heat Dissipation 45 Energy Generation 32 Energy Capacity 670 Matter Stores 300 Matter Capacity 300 Sight Range 18 Terrain Scan Range 14 Terrain Scan Density 10 Evasion (%) 50 Recoil Reduction 3 Item Schematics ----------------- None Robot Schematics ------------------ None Fabricated ------------ Nothing Repaired ---------- Minigun | 19% | -8/Materials Alien Tech Used ----------------- None Achievements -------------- Everything Is Under Control Challenges ------------ None Game ------ Seed InsulatedConstructSheargun Manual? 0 Play Time 00:34:49 Cumulative 1.9 hours Start 2025.05.27 @ 00:24:49 End 2025.05.27 @ 00:58:11 Sessions 1 Manual Loads 0 Difficulty Rogue Special Mode None Game No. 4 Rogue 4 Adventurer 0 Explorer 0 Win Type - Total 0 Types 0/0/0/0/0/0/0/0/0/0 Lore% 1 Gallery% 4 Achievement% 6 Wizard Run 0 Options --------- Layout 1 ASCII 0 Keyboard 0 Movement Mouse Keybinds 0 Fullscreen 1 Font 28/SmallcapsGlow Map View 55x38 Zoom Use 0% Tactical HUD 0 Map Filters NONE Filters NONE Steam 1 RUN: 9595ca8e-ea5a-4c60-990d-009a96f39b53